[Event "Tata Steel GCT Blitz 2019"]
[Site "Kolkata"]
[Date "2019.11.25"]
[Round "7"]
[White "Vidit, Santosh Gujrathi"]
[Black "Harikrishna, Pentala"]
[Result "1/2-1/2"]
[ECO "D22"]
[WhiteElo "2722"]
[BlackElo "2731"]
[Annotator "ChessBase"]
[PlyCount "33"]
[EventDate "2019.11.25"]
[EventType "tourn"]
[EventCountry "IND"]
[SourceTitle "playchess.com"]
[Source "ChessBase"]
[SourceQuality "1"]
[TimeMode "Bronstein"]
[TimeControl "300+3"]

1. d4 {[%emt 0:00:00]} d5 {[%emt 0:00:00]} 2. c4 dxc4 {[%emt 0:00:00]} 3. Nf3 {[%emt 0:00:00]} a6 {[%emt 0:00:00]} 4. e3 {[%emt 0:00:00]} b5 {[%emt 0:00:04]} 5. a4 {[%emt 0:00:00]} Bb7 {[%emt 0:00:07]} 6. axb5 {[%emt 0:00:00]} axb5 {[%emt 0:00:03]} 7. Rxa8 {[%emt 0:00:00]} Bxa8 {[%emt 0:00:03]} 8. b3 {[%emt 0:00:00]} e6 {[%emt 0:00:08]} 9. bxc4 {[%emt 0:00:00]} bxc4 {[%emt 0:00:03]} 10. Ne5 {[%emt 0:00:15]} Bb4+ {[%emt 0:00:26]} 11. Bd2 {[%emt 0:00:21]} Bxd2+ {[%emt 0:00:05]} 12. Nxd2 {[%emt 0:00:03]} Nf6 {[%emt 0:00:03]} 13. Qa4+ {[%emt 0:00:20]} Nbd7 {[%emt 0:00:05]} 14. Bxc4 {[%emt 0:00:52]} O-O {[%emt 0:00:12]} 15. Nef3 {[%emt 0:01:00]} c5 {[%emt 0:00:20]} 16. dxc5 {[%emt 0:00:04]} Nxc5 {[%emt 0:00:22]} 17. Qa3 {[%emt 0:00:03]} 1/2-1/2